[Event "Late-Titled-Tuesday-Blitz-March-05-2024"]
[Site "Chess.com"]
[Date "2024.03.05"]
[Round "4"]
[White "yosephtaher"]
[Black "maximnovik"]
[Result "1/2-1/2"]
[WhiteElo "2913"]
[BlackElo "2595"]
[TimeControl "180+1"]
[EndTime "14:39:46 PST"]
[Termination "Game drawn by repetition"]

1. d4 {[%clk 0:03:00.1]} 1... Nf6 {[%clk 0:02:59.6]} 2. Nc3 {[%clk 0:03:00.3]}
2... d5 {[%clk 0:02:58.5]} 3. Bf4 {[%clk 0:03:00.6]} 3... c6 {[%clk 0:02:57]} 4.
e3 {[%clk 0:03:00.6]} 4... g6 {[%clk 0:02:57.2]} 5. h4 {[%clk 0:03:00.3]} 5...
h5 {[%clk 0:02:53.8]} 6. Nf3 {[%clk 0:03:00.7]} 6... Bg7 {[%clk 0:02:53.1]} 7.
Ne5 {[%clk 0:03:01.2]} 7... Qb6 {[%clk 0:02:53]} 8. Rb1 {[%clk 0:02:59.7]} 8...
Nfd7 {[%clk 0:02:49.8]} 9. Nf3 {[%clk 0:02:57]} 9... Nf6 {[%clk 0:02:49.5]} 10.
Be2 {[%clk 0:02:57.1]} 10... Bg4 {[%clk 0:02:48.4]} 11. Ne5 {[%clk 0:02:56.8]}
11... Bxe2 {[%clk 0:02:47.9]} 12. Nxe2 {[%clk 0:02:57.7]} 12... Qa5+ {[%clk
0:02:30.3]} 13. c3 {[%clk 0:02:54.9]} 13... Qxa2 {[%clk 0:02:20.9]} 14. O-O
{[%clk 0:02:53.5]} 14... Qa5 {[%clk 0:02:19.4]} 15. Bg5 {[%clk 0:02:50.3]} 15...
O-O {[%clk 0:02:12.9]} 16. Nf4 {[%clk 0:02:50.3]} 16... Qc7 {[%clk 0:02:09.4]}
17. g4 {[%clk 0:02:49.7]} 17... hxg4 {[%clk 0:01:58.9]} 18. Nxg4 {[%clk
0:02:49.2]} 18... Nxg4 {[%clk 0:01:54.4]} 19. Qxg4 {[%clk 0:02:48.7]} 19... Qc8
{[%clk 0:01:19.7]} 20. Qg3 {[%clk 0:02:44.3]} 20... e5 {[%clk 0:01:13.6]} 21.
dxe5 {[%clk 0:02:28.8]} 21... Bxe5 {[%clk 0:01:13.4]} 22. h5 {[%clk 0:02:29.5]}
22... Qf5 {[%clk 0:01:11.1]} 23. hxg6 {[%clk 0:02:26.3]} 23... fxg6 {[%clk
0:01:10.2]} 24. Kg2 {[%clk 0:02:24.7]} 24... Nd7 {[%clk 0:01:08.3]} 25. Rh1
{[%clk 0:02:22.1]} 25... Nf6 {[%clk 0:00:44.8]} 26. f3 {[%clk 0:02:16.3]} 26...
Qc2+ {[%clk 0:00:32.2]} 27. Kh3 {[%clk 0:02:15.6]} 27... Bxf4 {[%clk 0:00:27.4]}
28. Bxf4 {[%clk 0:02:06.5]} 28... Rf7 {[%clk 0:00:25]} 29. Bg5 {[%clk
0:01:53.3]} 29... Rh7+ {[%clk 0:00:23.9]} 30. Bh4 {[%clk 0:01:54]} 30... Re8
{[%clk 0:00:17.6]} 31. e4 {[%clk 0:01:52.6]} 31... dxe4 {[%clk 0:00:17.1]} 32.
Qxg6+ {[%clk 0:01:52.5]} 32... Rg7 {[%clk 0:00:17.4]} 33. Rbc1 {[%clk
0:01:41.9]} 33... Rxg6 {[%clk 0:00:16.6]} 34. Rxc2 {[%clk 0:01:42]} 34... exf3
{[%clk 0:00:16.9]} 35. Rf1 {[%clk 0:01:42.1]} 35... Re3 {[%clk 0:00:16.5]} 36.
Rcf2 {[%clk 0:01:41.8]} 36... Ne4 {[%clk 0:00:14]} 37. Rxf3 {[%clk 0:01:42.2]}
37... Rxf3+ {[%clk 0:00:14.3]} 38. Rxf3 {[%clk 0:01:43.1]} 38... b5 {[%clk
0:00:13.1]} 39. Re3 {[%clk 0:01:43.4]} 39... Re6 {[%clk 0:00:13.1]} 40. Kg2
{[%clk 0:01:41.4]} 40... Kf7 {[%clk 0:00:13.3]} 41. Rf3+ {[%clk 0:01:40.2]}
41... Ke8 {[%clk 0:00:12.6]} 42. Rh3 {[%clk 0:01:38.5]} 42... a5 {[%clk
0:00:12.5]} 43. Be1 {[%clk 0:01:38.1]} 43... Kd7 {[%clk 0:00:12.4]} 44. Rh1
{[%clk 0:01:37.6]} 44... Kd6 {[%clk 0:00:12.2]} 45. Kf3 {[%clk 0:01:38.1]} 45...
Kd5 {[%clk 0:00:12.4]} 46. b3 {[%clk 0:01:36.5]} 46... Nc5 {[%clk 0:00:10.8]}
47. Rh5+ {[%clk 0:01:36.2]} 47... Re5 {[%clk 0:00:10.8]} 48. c4+ {[%clk
0:01:35.1]} 48... bxc4 {[%clk 0:00:10.6]} 49. bxc4+ {[%clk 0:01:36]} 49... Ke6
{[%clk 0:00:10.8]} 50. Rh6+ {[%clk 0:01:36.1]} 50... Kd7 {[%clk 0:00:10.8]} 51.
Bxa5 {[%clk 0:01:35.7]} 51... Nd3 {[%clk 0:00:09.5]} 52. Rh7+ {[%clk 0:01:35]}
52... Re7 {[%clk 0:00:09.5]} 53. Rh4 {[%clk 0:01:33.5]} 53... Ne5+ {[%clk
0:00:09.7]} 54. Kf2 {[%clk 0:01:34.1]} 54... Ke6 {[%clk 0:00:09.7]} 55. Bc3
{[%clk 0:01:33.6]} 55... Kf5 {[%clk 0:00:09.8]} 56. Rh5+ {[%clk 0:01:30.3]}
56... Ke4 {[%clk 0:00:10]} 57. Ke2 {[%clk 0:01:28.1]} 57... Nxc4 {[%clk
0:00:10.2]} 58. Rc5 {[%clk 0:01:25.8]} 58... Ne5 {[%clk 0:00:09.3]} 59. Bd2
{[%clk 0:01:23.6]} 59... Re6 {[%clk 0:00:09.6]} 60. Kd1 {[%clk 0:01:21.8]} 60...
Kd4 {[%clk 0:00:09.1]} 61. Ra5 {[%clk 0:01:15.5]} 61... c5 {[%clk 0:00:09]} 62.
Kc2 {[%clk 0:01:14.7]} 62... Nc4 {[%clk 0:00:09]} 63. Bc3+ {[%clk 0:01:15.5]}
63... Kd5 {[%clk 0:00:08.9]} 64. Ra8 {[%clk 0:01:16.1]} 64... Re2+ {[%clk
0:00:08.8]} 65. Kb3 {[%clk 0:01:15.7]} 65... Nd2+ {[%clk 0:00:09]} 66. Kc2
{[%clk 0:01:16.1]} 66... Ne4+ {[%clk 0:00:09.2]} 67. Kd3 {[%clk 0:01:16.7]}
67... Nxc3 {[%clk 0:00:09.4]} 68. Rd8+ {[%clk 0:01:15]} 68... Kc6 {[%clk
0:00:09.6]} 69. Kxc3 {[%clk 0:01:15.9]} 69... Re3+ {[%clk 0:00:09.9]} 70. Kc4
{[%clk 0:01:16]} 70... Re4+ {[%clk 0:00:10.3]} 71. Kc3 {[%clk 0:01:16.6]} 71...
Rf4 {[%clk 0:00:10.5]} 72. Rc8+ {[%clk 0:01:16.7]} 72... Kb5 {[%clk 0:00:10.9]}
73. Rb8+ {[%clk 0:01:17.3]} 73... Kc6 {[%clk 0:00:11.4]} 74. Rc8+ {[%clk
0:01:18]} 74... Kd5 {[%clk 0:00:11.9]} 75. Rd8+ {[%clk 0:01:18.7]} 75... Kc6
{[%clk 0:00:12.8]} 76. Rc8+ {[%clk 0:01:18.8]} 1/2-1/2

[Event "Late-Titled-Tuesday-Blitz-March-05-2024"]
[Site "Chess.com"]
[Date "2024.03.05"]
[Round "4"]
[White "MatthewG-p4p"]
[Black "mightysmasher"]
[Result "1-0"]
[WhiteElo "2889"]
[BlackElo "2586"]
[TimeControl "180+1"]
[EndTime "14:39:50 PST"]
[Termination "MatthewG-p4p won on time"]

1. f4 {[%clk 0:03:00.9]} 1... d5 {[%clk 0:02:57.2]} 2. Nf3 {[%clk 0:03:01.2]}
2... e6 {[%clk 0:02:56.8]} 3. g3 {[%clk 0:03:01.7]} 3... Bd6 {[%clk 0:02:56.9]}
4. Bg2 {[%clk 0:03:02.5]} 4... Nf6 {[%clk 0:02:57.5]} 5. O-O {[%clk 0:03:03.2]}
5... O-O {[%clk 0:02:58.2]} 6. d3 {[%clk 0:03:04.1]} 6... c5 {[%clk 0:02:58.4]}
7. Nc3 {[%clk 0:03:04.7]} 7... b6 {[%clk 0:02:58.7]} 8. e4 {[%clk 0:03:04.8]}
8... dxe4 {[%clk 0:02:56.6]} 9. dxe4 {[%clk 0:03:05.7]} 9... Be7 {[%clk
0:02:55.8]} 10. e5 {[%clk 0:03:04.9]} 10... Nd5 {[%clk 0:02:55.8]} 11. Ne4
{[%clk 0:03:04.5]} 11... Bb7 {[%clk 0:02:55.5]} 12. Qe2 {[%clk 0:03:04.6]} 12...
Nc6 {[%clk 0:02:54.5]} 13. Rd1 {[%clk 0:03:05.3]} 13... Qc7 {[%clk 0:02:51.5]}
14. c4 {[%clk 0:03:05.6]} 14... Ndb4 {[%clk 0:02:49.8]} 15. a3 {[%clk
0:03:06.2]} 15... Na6 {[%clk 0:02:49.4]} 16. Nd6 {[%clk 0:03:05.4]} 16... Rad8
{[%clk 0:02:48]} 17. Nb5 {[%clk 0:03:05.3]} 17... Qc8 {[%clk 0:02:45.1]} 18. Be3
{[%clk 0:03:04.7]} 18... Qa8 {[%clk 0:02:36.6]} 19. Nd6 {[%clk 0:02:57.6]} 19...
Bxd6 {[%clk 0:02:35.9]} 20. exd6 {[%clk 0:02:57.9]} 20... Na5 {[%clk 0:02:33.5]}
21. Rab1 {[%clk 0:02:53]} 21... Nxc4 {[%clk 0:02:23.4]} 22. Qxc4 {[%clk
0:02:14.4]} 22... Bxf3 {[%clk 0:02:22.5]} 23. Bxf3 {[%clk 0:02:15.3]} 23... Qxf3
{[%clk 0:02:22.1]} 24. Bf2 {[%clk 0:02:16.2]} 24... Nb8 {[%clk 0:02:16.9]} 25.
b4 {[%clk 0:02:16.4]} 25... cxb4 {[%clk 0:02:11.6]} 26. axb4 {[%clk 0:02:15.7]}
26... Nd7 {[%clk 0:02:11]} 27. Rd3 {[%clk 0:02:08.5]} 27... Qg4 {[%clk
0:02:09.7]} 28. Qc7 {[%clk 0:02:07.3]} 28... Nf6 {[%clk 0:02:05.6]} 29. Qxa7
{[%clk 0:02:03.5]} 29... Ne4 {[%clk 0:01:57.4]} 30. Qxb6 {[%clk 0:02:03.4]}
30... Qg6 {[%clk 0:01:44.5]} 31. Rbd1 {[%clk 0:02:00.8]} 31... h5 {[%clk
0:01:39.3]} 32. d7 {[%clk 0:01:53.4]} 32... h4 {[%clk 0:01:33.9]} 33. Qe3 {[%clk
0:01:53.7]} 33... Nf6 {[%clk 0:01:31]} 34. Qf3 {[%clk 0:01:50.8]} 34... Nd5
{[%clk 0:01:27.6]} 35. Bc5 {[%clk 0:01:50.3]} 35... Qf6 {[%clk 0:01:08.5]} 36.
Bxf8 {[%clk 0:01:43.7]} 36... Kxf8 {[%clk 0:01:07.1]} 37. Rxd5 {[%clk
0:01:35.3]} 37... exd5 {[%clk 0:01:06.2]} 38. Qxd5 {[%clk 0:01:36.2]} 38... hxg3
{[%clk 0:01:01.6]} 39. hxg3 {[%clk 0:01:36.7]} 39... Kg8 {[%clk 0:00:56.6]} 40.
Qg5 {[%clk 0:01:18.3]} 40... Qb6+ {[%clk 0:00:52.5]} 41. Qc5 {[%clk 0:01:18.3]}
41... Qg6 {[%clk 0:00:45.7]} 42. Qe3 {[%clk 0:01:06.4]} 42... Qg4 {[%clk
0:00:37.1]} 43. Rd2 {[%clk 0:01:02.4]} 43... Kh7 {[%clk 0:00:27.1]} 44. Rh2+
{[%clk 0:00:53.7]} 44... Kg6 {[%clk 0:00:21.6]} 45. Qe4+ {[%clk 0:00:54.1]}
45... Kf6 {[%clk 0:00:19.6]} 46. Qc6+ {[%clk 0:00:31.3]} 46... Ke7 {[%clk
0:00:18.3]} 47. Qc5+ {[%clk 0:00:31.6]} 47... Kf6 {[%clk 0:00:06.2]} 48. Qd6+
{[%clk 0:00:27.6]} 48... Kf5 {[%clk 0:00:06.5]} 49. Kf2 {[%clk 0:00:18.9]} 49...
f6 {[%clk 0:00:01.8]} 50. Rh4 {[%clk 0:00:15.9]} 1-0

[Event "Late-Titled-Tuesday-Blitz-March-05-2024"]
[Site "Chess.com"]
[Date "2024.03.05"]
[Round "4"]
[White "Caracal3000"]
[Black "trriinu"]
[Result "0-1"]
[WhiteElo "2454"]
[BlackElo "2258"]
[TimeControl "180+1"]
[EndTime "14:39:55 PST"]
[Termination "trriinu won by checkmate"]

1. e4 {[%clk 0:03:00.9]} 1... d5 {[%clk 0:02:59.8]} 2. exd5 {[%clk 0:03:01.8]}
2... Qxd5 {[%clk 0:03:00]} 3. Nc3 {[%clk 0:03:02.2]} 3... Qd6 {[%clk 0:03:00.7]}
4. d4 {[%clk 0:02:58]} 4... Nf6 {[%clk 0:03:01.2]} 5. g3 {[%clk 0:02:56.7]} 5...
Nc6 {[%clk 0:03:00.8]} 6. Nge2 {[%clk 0:02:56.1]} 6... Bg4 {[%clk 0:03:01.1]} 7.
Bf4 {[%clk 0:02:53.9]} 7... Qd7 {[%clk 0:02:54.8]} 8. Bg2 {[%clk 0:02:50.8]}
8... e6 {[%clk 0:02:53.9]} 9. Nb5 {[%clk 0:02:32.8]} 9... Rc8 {[%clk 0:02:45.3]}
10. c4 {[%clk 0:02:12.2]} 10... Bb4+ {[%clk 0:01:46.8]} 11. Bd2 {[%clk
0:01:51.5]} 11... a6 {[%clk 0:01:29.6]} 12. Bxb4 {[%clk 0:01:43.7]} 12... axb5
{[%clk 0:01:28.8]} 13. Bc3 {[%clk 0:00:57.2]} 13... b4 {[%clk 0:01:05.4]} 14.
Bd2 {[%clk 0:00:52.5]} 14... Nxd4 {[%clk 0:01:05]} 15. f3 {[%clk 0:00:42.4]}
15... Bxf3 {[%clk 0:00:59.7]} 16. Be3 {[%clk 0:00:17.8]} 16... Bxg2 {[%clk
0:00:50.5]} 17. Rg1 {[%clk 0:00:18.1]} 17... Nf3+ {[%clk 0:00:29.6]} 18. Kf2
{[%clk 0:00:17.2]} 18... Nxg1 {[%clk 0:00:28.8]} 19. Qxg1 {[%clk 0:00:15]} 19...
Be4 {[%clk 0:00:19.5]} 20. Rd1 {[%clk 0:00:15.3]} 20... Qc6 {[%clk 0:00:17.6]}
21. Nd4 {[%clk 0:00:13.3]} 21... Qxc4 {[%clk 0:00:17.8]} 22. Rc1 {[%clk
0:00:10.2]} 22... Ng4+ {[%clk 0:00:16.9]} 23. Ke1 {[%clk 0:00:05.4]} 23... Qd3
{[%clk 0:00:10.8]} 24. Nc2 {[%clk 0:00:03.6]} 24... Bf3 {[%clk 0:00:06.8]} 25.
Nd4 {[%clk 0:00:02.2]} 25... Nxe3 {[%clk 0:00:05.5]} 26. Qf2 {[%clk 0:00:01.5]}
26... Ng4 {[%clk 0:00:03.8]} 27. Qxf3 {[%clk 0:00:01.9]} 27... Qxf3 {[%clk
0:00:03.8]} 28. Nxf3 {[%clk 0:00:02.8]} 28... Nf6 {[%clk 0:00:03.7]} 29. Rd1
{[%clk 0:00:03.7]} 29... O-O {[%clk 0:00:03.7]} 30. Ne5 {[%clk 0:00:04.6]} 30...
Rfd8 {[%clk 0:00:03.9]} 31. Rc1 {[%clk 0:00:05.5]} 31... Rd6 {[%clk 0:00:04]}
32. Nc4 {[%clk 0:00:06.1]} 32... Rc6 {[%clk 0:00:04.2]} 33. b3 {[%clk
0:00:06.6]} 33... b5 {[%clk 0:00:04.4]} 34. Rd1 {[%clk 0:00:07.5]} 34... bxc4
{[%clk 0:00:04.4]} 35. bxc4 {[%clk 0:00:08.4]} 35... Rxc4 {[%clk 0:00:04.8]} 36.
Rb1 {[%clk 0:00:09.3]} 36... Rc3 {[%clk 0:00:05.1]} 37. Kd2 {[%clk 0:00:10.2]}
37... Rf3 {[%clk 0:00:05.5]} 38. Rxb4 {[%clk 0:00:10.8]} 38... Rf2+ {[%clk
0:00:06.1]} 39. Ke3 {[%clk 0:00:11.5]} 39... Rxh2 {[%clk 0:00:07]} 40. Rb7
{[%clk 0:00:12]} 40... Rh6 {[%clk 0:00:07.2]} 41. Rxc7 {[%clk 0:00:12.6]} 41...
Rxc7 {[%clk 0:00:07.5]} 42. Kf3 {[%clk 0:00:12.6]} 42... Ra7 {[%clk 0:00:08.1]}
43. g4 {[%clk 0:00:13.3]} 43... Rxa2 {[%clk 0:00:08.4]} 44. g5 {[%clk
0:00:14.2]} 44... Ra3+ {[%clk 0:00:08.8]} 45. Kf4 {[%clk 0:00:14.4]} 45... Nd5+
{[%clk 0:00:09]} 46. Kg4 {[%clk 0:00:15.3]} 46... Rg6 {[%clk 0:00:08.4]} 47. Kh5
{[%clk 0:00:15.7]} 47... Rh3+ {[%clk 0:00:07.7]} 48. Kg4 {[%clk 0:00:16.1]}
48... Rh1 {[%clk 0:00:08]} 49. Kf3 {[%clk 0:00:15.8]} 49... Rxg5 {[%clk
0:00:05.8]} 50. Ke4 {[%clk 0:00:16.4]} 50... Rh4+ {[%clk 0:00:05.3]} 51. Kf3
{[%clk 0:00:17.3]} 51... Rf5+ {[%clk 0:00:04.9]} 52. Kg3 {[%clk 0:00:18.2]}
52... Rh6 {[%clk 0:00:04.2]} 53. Kg4 {[%clk 0:00:18.8]} 53... f6 {[%clk
0:00:03.6]} 54. Kg3 {[%clk 0:00:19.7]} 54... Rg6+ {[%clk 0:00:03.3]} 55. Kh4
{[%clk 0:00:19.8]} 55... Rf4+ {[%clk 0:00:02.4]} 56. Kh3 {[%clk 0:00:20.3]}
56... Rf1 {[%clk 0:00:02.6]} 57. Kh2 {[%clk 0:00:20.6]} 57... Rf5 {[%clk
0:00:03.2]} 58. Kh3 {[%clk 0:00:20.9]} 58... Rh5# {[%clk 0:00:04]} 0-1

[Event "Late-Titled-Tuesday-Blitz-March-05-2024"]
[Site "Chess.com"]
[Date "2024.03.05"]
[Round "4"]
[White "HansOnTwitch"]
[Black "GM4life"]
[Result "1-0"]
[WhiteElo "3113"]
[BlackElo "2553"]
[TimeControl "180+1"]
[EndTime "14:39:56 PST"]
[Termination "HansOnTwitch won on time"]

1. e4 {[%clk 0:03:00.9]} 1... c5 {[%clk 0:03:00.1]} 2. Nf3 {[%clk 0:03:00.5]}
2... d6 {[%clk 0:03:00.7]} 3. Bb5+ {[%clk 0:02:58.5]} 3... Nd7 {[%clk
0:02:59.7]} 4. O-O {[%clk 0:02:58.3]} 4... a6 {[%clk 0:02:56.6]} 5. Bd3 {[%clk
0:02:58.5]} 5... Ngf6 {[%clk 0:02:56]} 6. Re1 {[%clk 0:02:58.9]} 6... e6 {[%clk
0:02:53.6]} 7. Bf1 {[%clk 0:02:59]} 7... Be7 {[%clk 0:02:53.2]} 8. d4 {[%clk
0:02:56]} 8... cxd4 {[%clk 0:02:52]} 9. Nxd4 {[%clk 0:02:56.9]} 9... O-O {[%clk
0:02:50.8]} 10. c4 {[%clk 0:02:56.5]} 10... Qc7 {[%clk 0:02:50.8]} 11. Nc3
{[%clk 0:02:56.6]} 11... b6 {[%clk 0:02:51.4]} 12. Bg5 {[%clk 0:02:55.7]} 12...
Bb7 {[%clk 0:02:51.5]} 13. Rc1 {[%clk 0:02:55.3]} 13... Rfe8 {[%clk 0:02:50.1]}
14. Qd2 {[%clk 0:02:53.9]} 14... Rac8 {[%clk 0:02:50.4]} 15. b3 {[%clk
0:02:53.1]} 15... Qb8 {[%clk 0:02:50.9]} 16. h3 {[%clk 0:02:47]} 16... Bd8
{[%clk 0:02:46.4]} 17. g3 {[%clk 0:02:47]} 17... Bc7 {[%clk 0:02:46.2]} 18. Bg2
{[%clk 0:02:47.3]} 18... Qa8 {[%clk 0:02:20.8]} 19. Qc2 {[%clk 0:02:42]} 19...
h6 {[%clk 0:02:17.9]} 20. Bd2 {[%clk 0:02:37.8]} 20... Nc5 {[%clk 0:02:16.9]}
21. g4 {[%clk 0:02:29.2]} 21... Qb8 {[%clk 0:02:00.5]} 22. b4 {[%clk 0:02:16.7]}
22... Ncd7 {[%clk 0:01:58.1]} 23. Be3 {[%clk 0:02:15.8]} 23... Ne5 {[%clk
0:01:55.7]} 24. Qe2 {[%clk 0:02:15.9]} 24... Bd8 {[%clk 0:01:54.9]} 25. f4
{[%clk 0:01:59.9]} 25... Nxc4 {[%clk 0:01:54.4]} 26. Bf2 {[%clk 0:02:00.3]}
26... b5 {[%clk 0:01:51.7]} 27. g5 {[%clk 0:01:58.1]} 27... hxg5 {[%clk
0:01:50.7]} 28. fxg5 {[%clk 0:01:59]} 28... Nd7 {[%clk 0:01:49.7]} 29. h4 {[%clk
0:01:57.5]} 29... Nde5 {[%clk 0:01:46]} 30. Kh1 {[%clk 0:01:45.6]} 30... Bb6
{[%clk 0:01:46]} 31. h5 {[%clk 0:01:40.7]} 31... Rc7 {[%clk 0:01:43.3]} 32. Rg1
{[%clk 0:01:33.1]} 32... Qa7 {[%clk 0:01:38.9]} 33. Rcd1 {[%clk 0:01:32.2]}
33... Na3 {[%clk 0:01:35.8]} 34. Qb2 {[%clk 0:01:22.5]} 34... Rec8 {[%clk
0:01:26.6]} 35. Nce2 {[%clk 0:01:13.7]} 35... Nc2 {[%clk 0:01:25.6]} 36. g6
{[%clk 0:01:12.6]} 36... Rc4 {[%clk 0:00:43.9]} 37. gxf7+ {[%clk 0:01:07.6]}
37... Kxf7 {[%clk 0:00:43.9]} 38. Rgf1 {[%clk 0:01:03.3]} 38... Kg8 {[%clk
0:00:39.7]} 39. Bg1 {[%clk 0:01:03.3]} 39... Ba8 {[%clk 0:00:36]} 40. Qb3 {[%clk
0:01:01.7]} 40... Nxd4 {[%clk 0:00:33.8]} 41. Nxd4 {[%clk 0:01:01.3]} 41... Qe7
{[%clk 0:00:33.7]} 42. Qh3 {[%clk 0:00:58.9]} 42... Re8 {[%clk 0:00:20.6]} 43.
h6 {[%clk 0:00:58.8]} 43... gxh6 {[%clk 0:00:19.8]} 44. Rf4 {[%clk 0:00:50.2]}
44... Ng6 {[%clk 0:00:16.8]} 45. Rg4 {[%clk 0:00:48]} 45... Kh7 {[%clk
0:00:16.7]} 46. Be3 {[%clk 0:00:48.6]} 46... Qg7 {[%clk 0:00:13.2]} 47. e5
{[%clk 0:00:46.1]} 47... Bxg2+ {[%clk 0:00:11.4]} 48. Rxg2 {[%clk 0:00:43.2]}
48... dxe5 {[%clk 0:00:10.7]} 49. Nxe6 {[%clk 0:00:32.6]} 49... Rxe6 {[%clk
0:00:04.6]} 50. Qxe6 {[%clk 0:00:32.8]} 50... Bxe3 {[%clk 0:00:04]} 51. Rd7
{[%clk 0:00:25]} 51... Rc1+ {[%clk 0:00:03.7]} 52. Kh2 {[%clk 0:00:25.6]} 52...
Bf4+ {[%clk 0:00:03.8]} 53. Kh3 {[%clk 0:00:23]} 53... Rh1+ {[%clk 0:00:04.4]}
54. Kg4 {[%clk 0:00:23.4]} 54... Ne7+ {[%clk 0:00:03.2]} 55. Kf3 {[%clk
0:00:24.1]} 55... Rf1+ {[%clk 0:00:01.8]} 56. Rf2 {[%clk 0:00:24.3]} 56... Qg3+
{[%clk 0:00:01.6]} 57. Ke4 {[%clk 0:00:24.7]} 57... Qd3+ {[%clk 0:00:02.5]} 58.
Kxd3 {[%clk 0:00:23]} 1-0

[Event "Late-Titled-Tuesday-Blitz-March-05-2024"]
[Site "Chess.com"]
[Date "2024.03.05"]
[Round "4"]
[White "ninguno46"]
[Black "IMRosen"]
[Result "0-1"]
[WhiteElo "2519"]
[BlackElo "2673"]
[TimeControl "180+1"]
[EndTime "14:39:58 PST"]
[Termination "IMRosen won by resignation"]

1. e4 {[%clk 0:02:59.6]} 1... c5 {[%clk 0:02:49.1]} 2. Nc3 {[%clk 0:02:58.6]}
2... Nc6 {[%clk 0:02:47.6]} 3. f4 {[%clk 0:02:58.8]} 3... e6 {[%clk 0:02:42.5]}
4. Nf3 {[%clk 0:02:57.4]} 4... a6 {[%clk 0:02:42.7]} 5. d3 {[%clk 0:02:56.2]}
5... b5 {[%clk 0:02:40.9]} 6. Qe2 {[%clk 0:02:55.4]} 6... b4 {[%clk 0:02:39.9]}
7. Nd1 {[%clk 0:02:54.6]} 7... Bb7 {[%clk 0:02:40.6]} 8. g3 {[%clk 0:02:54.1]}
8... Nge7 {[%clk 0:02:40.1]} 9. Bg2 {[%clk 0:02:54.2]} 9... d5 {[%clk
0:02:40.7]} 10. Nf2 {[%clk 0:02:49.5]} 10... g6 {[%clk 0:02:40.7]} 11. O-O
{[%clk 0:02:43.2]} 11... Bg7 {[%clk 0:02:40.9]} 12. e5 {[%clk 0:02:42.2]} 12...
h5 {[%clk 0:02:35]} 13. Be3 {[%clk 0:02:41.2]} 13... Qb6 {[%clk 0:02:22]} 14. c3
{[%clk 0:02:30.4]} 14... Nf5 {[%clk 0:02:18.9]} 15. Bd2 {[%clk 0:02:30.5]} 15...
a5 {[%clk 0:02:18]} 16. a3 {[%clk 0:02:24.1]} 16... b3 {[%clk 0:01:58.8]} 17.
Bh3 {[%clk 0:02:22.6]} 17... a4 {[%clk 0:01:46.2]} 18. Bxf5 {[%clk 0:02:13.2]}
18... gxf5 {[%clk 0:01:46.5]} 19. h4 {[%clk 0:02:13.6]} 19... d4 {[%clk
0:01:36.4]} 20. c4 {[%clk 0:02:12.9]} 20... Ne7 {[%clk 0:01:28.6]} 21. Nh3
{[%clk 0:02:12.6]} 21... Bh6 {[%clk 0:01:19.4]} 22. Nhg5 {[%clk 0:02:11.9]}
22... Qc6 {[%clk 0:01:15]} 23. Qh2 {[%clk 0:02:10.4]} 23... Bf8 {[%clk
0:01:00.7]} 24. Rae1 {[%clk 0:02:00.9]} 24... Ng8 {[%clk 0:01:00.7]} 25. Qh3
{[%clk 0:01:51.1]} 25... Nh6 {[%clk 0:01:00.5]} 26. Kf2 {[%clk 0:01:49.8]} 26...
Ng4+ {[%clk 0:00:50.9]} 27. Ke2 {[%clk 0:01:49.5]} 27... Be7 {[%clk 0:00:51.5]}
28. Kd1 {[%clk 0:01:48.1]} 28... Ba6 {[%clk 0:00:31.3]} 29. Kc1 {[%clk
0:01:45.8]} 29... Bb7 {[%clk 0:00:21.1]} 30. Re2 {[%clk 0:01:40.1]} 30... Bd8
{[%clk 0:00:21.6]} 31. Nh2 {[%clk 0:01:38.5]} 31... Ne3 {[%clk 0:00:17.2]} 32.
Bxe3 {[%clk 0:01:36.6]} 32... dxe3 {[%clk 0:00:17.5]} 33. Rxe3 {[%clk
0:01:36.4]} 33... Ba5 {[%clk 0:00:18.2]} 34. Nhf3 {[%clk 0:01:33.4]} 34... Rd8
{[%clk 0:00:16.1]} 35. Qg2 {[%clk 0:01:31.8]} 35... Rd7 {[%clk 0:00:14.4]} 36.
Qe2 {[%clk 0:01:31.8]} 36... Kd8 {[%clk 0:00:14.3]} 37. Rd1 {[%clk 0:01:31.5]}
37... Kc8 {[%clk 0:00:14.9]} 38. Nh3 {[%clk 0:01:24.6]} 38... Rg8 {[%clk
0:00:11.1]} 39. Nfg5 {[%clk 0:01:23.1]} 39... Rgd8 {[%clk 0:00:11]} 40. Nh7
{[%clk 0:01:05.7]} 40... Rh8 {[%clk 0:00:03.2]} 41. Nf6 {[%clk 0:01:05.2]} 41...
Rd4 {[%clk 0:00:03.8]} 42. Ng5 {[%clk 0:01:04.2]} 42... Qc7 {[%clk 0:00:03.3]}
43. Nxh5 {[%clk 0:01:01.5]} 43... Ba6 {[%clk 0:00:03.4]} 44. Nf6 {[%clk
0:00:55.5]} 44... Rhd8 {[%clk 0:00:03.8]} 45. Qg2 {[%clk 0:00:50.8]} 45... Kb8
{[%clk 0:00:04]} 46. h5 {[%clk 0:00:48.3]} 46... Qe7 {[%clk 0:00:03.7]} 47. h6
{[%clk 0:00:47.8]} 47... Bxc4 {[%clk 0:00:03.5]} 48. Qc6 {[%clk 0:00:46.1]}
48... Bd5 {[%clk 0:00:01.8]} 49. Qb5+ {[%clk 0:00:44.9]} 49... Bb7 {[%clk
0:00:02]} 50. Qxa5 {[%clk 0:00:44.8]} 50... c4 {[%clk 0:00:02.6]} 51. Qb4 {[%clk
0:00:43]} 51... Qc7 {[%clk 0:00:02.6]} 52. Kb1 {[%clk 0:00:40.1]} 52... cxd3
{[%clk 0:00:03.1]} 53. Qc3 {[%clk 0:00:38.9]} 53... Rc4 {[%clk 0:00:02.6]} 54.
Qe1 {[%clk 0:00:34.4]} 54... Rc8 {[%clk 0:00:03.1]} 55. Rexd3 {[%clk 0:00:33]}
55... Rc2 {[%clk 0:00:03.2]} 56. Nd7+ {[%clk 0:00:31.6]} 56... Ka7 {[%clk
0:00:02.6]} 57. Qg1+ {[%clk 0:00:29.9]} 57... Ka8 {[%clk 0:00:01.9]} 58. Nb6+
{[%clk 0:00:29.4]} 58... Kb8 {[%clk 0:00:02.5]} 59. Nxc8 {[%clk 0:00:29.6]}
59... Rxb2+ {[%clk 0:00:03.1]} 60. Ka1 {[%clk 0:00:28.7]} 60... Ra2+ {[%clk
0:00:03.3]} 0-1